[Event "45th FIDE Womens Olympiad 2024"]
[Site "Budapest"]
[Date "2024.09.14"]
[Round "4.25"]
[White "Injac, Teodora"]
[Black "Assaubayeva, Bibisara"]
[Result "1/2-1/2"]
[ECO "E91"]
[WhiteElo "2425"]
[BlackElo "2482"]
[Annotator "ChessBase"]
[PlyCount "98"]
[EventDate "2024.09.05"]
[EventType "team-tourn"]
[EventCountry "HUN"]
[SourceTitle "playchess.com"]
[Source "ChessBase"]
[SourceQuality "1"]
[WhiteTeam "Serbia"]
[BlackTeam "Kazakhstan"]
[WhiteTeamCountry "SRB"]
[BlackTeamCountry "KAZ"]
[TimeControl "40/5400+30:1800+30"]

1. d4 {[%emt 0:00:04]} Nf6 {[%emt 0:00:16]} 2. c4 {[%emt 0:00:05]} g6 {[%emt 0:00:14]} 3. Nc3 {[%emt 0:00:22]} Bg7 {[%emt 0:00:42]} 4. e4 {[%emt 0:00:21]} d6 {[%emt 0:00:36]} 5. Be2 {[%emt 0:00:24]} O-O {[%emt 0:00:18]} 6. Nf3 {[%emt 0:00:03]} c6 {[%emt 0:05:40]} 7. O-O {[%emt 0:02:04]} a6 {[%emt 0:02:38]} 8. h3 {[%emt 0:11:42]} b5 {[%emt 0:04:14]} 9. a3 {[%emt 0:10:52]} Bb7 {[%emt 0:08:53]} 10. e5 {[%emt 0:15:30]} Ne8 {[%emt 0:03:10]} 11. Bf4 {[%emt 0:08:57]} Nd7 {[%emt 0:02:49]} 12. b4 {[%emt 0:06:12]} bxc4 {[%emt 0:04:31]} 13. Bxc4 {[%emt 0:00:55]} d5 {[%emt 0:01:05]} 14. Bd3 {[%emt 0:02:10]} Nc7 {[%emt 0:00:21]} 15. Qd2 {[%emt 0:06:28]} a5 {[%emt 0:05:27]} 16. Rfc1 {[%emt 0:05:03]} Ba6 {[%emt 0:06:58]} 17. Na4 {[%emt 0:03:19]} Ne6 {[%emt 0:03:22]} 18. Be3 {[%emt 0:00:34]} Bxd3 {[%emt 0:07:20]} 19. Qxd3 {[%emt 0:00:04]} Nb6 {[%emt 0:01:30]} 20. Nxb6 {[%emt 0:02:37]} Qxb6 {[%emt 0:00:07]} 21. Rab1 {[%emt 0:00:01]} axb4 {[%emt 0:04:00]} 22. Rxb4 {[%emt 0:02:53]} Qc7 {[%emt 0:03:13]} 23. Qb3 {[%emt 0:04:22]} Rfb8 {[%emt 0:05:54]} 24. Ng5 {[%emt 0:06:02]} Rxb4 {[%emt 0:05:50]} 25. axb4 {[%emt 0:00:08]} Nxg5 {[%emt 0:09:39]} 26. Bxg5 {[%emt 0:00:05]} f6 {[%emt 0:03:32]} 27. exf6 {[%emt 0:01:30]} exf6 {[%emt 0:00:01]} 28. Be3 {[%emt 0:00:23]} Qb6 {[%emt 0:01:09]} 29. Qc3 {[%emt 0:04:10]} Rc8 {[%emt 0:00:19]} 30. Bf4 {[%emt 0:01:05]} Qb7 {[%emt 0:07:04]} 31. Qc5 {[%emt 0:02:52]} Bf8 {[%emt 0:02:19]} 32. Bd6 {[%emt 0:00:05]} Bxd6 {[%emt 0:01:02]} 33. Qxd6 {[%emt 0:00:03]} Kf7 {[%emt 0:00:16]} 34. b5 {[%emt 0:04:54]} cxb5 {[%emt 0:00:34]} 35. Rxc8 {[%emt 0:00:13]} Qxc8 {[%emt 0:00:01]} 36. Qxd5+ {[%emt 0:00:03]} Kg7 {[%emt 0:01:37]} 37. Qxb5 {[%emt 0:00:04]} Qc1+ {[%emt 0:00:13]} 38. Qf1 {[%emt 0:00:05]} Qd2 {[%emt 0:00:23]} 39. Qc4 {[%emt 0:01:37]} Qe1+ {[%emt 0:00:39]} 40. Qf1 {[%emt 0:00:06]} Qd2 {[%emt 0:00:05]} 41. Qa1 {[%emt 0:04:49]} g5 {[%emt 0:02:00]} 42. g3 {[%emt 0:04:11]} h5 {[%emt 0:00:55]} 43. Qa7+ {[%emt 0:02:38]} Kg6 {[%emt 0:00:21]} 44. Qc5 {[%emt 0:01:26]} Qe1+ {[%emt 0:00:54]} 45. Kg2 {[%emt 0:00:03]} Qe4+ {[%emt 0:00:05]} 46. Kh2 {[%emt 0:04:36]} h4 {[%emt 0:03:49]} 47. g4 {[%emt 0:07:46]} Qf4+ {[%emt 0:05:59]} 48. Kg2 {[%emt 0:01:31]} Qe4+ {[%emt 0:00:05]} 49. Kh2 {[%emt 0:00:54]} Qf4+ {[%emt 0:00:04]} 1/2-1/2

[Event "45th FIDE Womens Olympiad 2024"]
[Site "Budapest"]
[Date "2024.09.14"]
[Round "4.25"]
[White "Ebrahim, Zahabiyah"]
[Black "Laamim, Roaa"]
[Result "0-1"]
[ECO "D02"]
[WhiteElo "1475"]
[BlackElo "1879"]
[PlyCount "40"]
[EventDate "2024.09.05"]
[EventType "team-tourn"]
[EventCountry "HUN"]
[WhiteTeam "Tanzania"]
[BlackTeam "Morocco"]
[WhiteTeamCountry "TAN"]
[BlackTeamCountry "MAR"]
[TimeControl "40/5400+30:1800+30"]

1. d4 d5 2. Nf3 e6 3. e3 Bd6 4. Bd3 Nd7 5. Nbd2 f5 6. c3 Ngf6 7. O-O O-O 8. c4 c6 9. a3 Ne4 10. b4 Qf6 11. Nb3 g5 12. cxd5 exd5 13. Nc5 g4 14. Nd2 Bxh2+ 15. Kxh2 Qh4+ 16. Kg1 Rf6 17. Nf3 Qh5 18. Re1 Rh6 19. Kf1 Nc3 20. Qc2 gxf3 {0-} 0-1

[Event "45th FIDE Womens Olympiad 2024"]
[Site "Budapest"]
[Date "2024.09.14"]
[Round "4.26"]
[White "Kamalidenova, Meruert"]
[Black "Gajcin, Marina"]
[Result "1/2-1/2"]
[ECO "B33"]
[WhiteElo "2352"]
[BlackElo "2253"]
[Annotator "ChessBase"]
[PlyCount "192"]
[EventDate "2024.09.05"]
[EventType "team-tourn"]
[EventCountry "HUN"]
[SourceTitle "playchess.com"]
[Source "ChessBase"]
[SourceQuality "1"]
[WhiteTeam "Kazakhstan"]
[BlackTeam "Serbia"]
[WhiteTeamCountry "KAZ"]
[BlackTeamCountry "SRB"]
[TimeControl "40/5400+30:1800+30"]

1. e4 {[%emt 0:00:04]} c5 {[%emt 0:00:04]} 2. Nf3 {[%emt 0:00:08]} Nc6 {[%emt 0:00:06]} 3. d4 {[%emt 0:00:04]} cxd4 {[%emt 0:00:04]} 4. Nxd4 {[%emt 0:00:04]} Nf6 {[%emt 0:00:29]} 5. Nc3 {[%emt 0:00:07]} e5 {[%emt 0:00:04]} 6. Ndb5 {[%emt 0:00:07]} d6 {[%emt 0:00:24]} 7. Bg5 {[%emt 0:00:19]} a6 {[%emt 0:00:27]} 8. Na3 {[%emt 0:00:06]} b5 {[%emt 0:00:18]} 9. Nd5 {[%emt 0:00:12]} Be7 {[%emt 0:00:11]} 10. Bxf6 {[%emt 0:00:10]} Bxf6 {[%emt 0:00:05]} 11. c3 {[%emt 0:00:07]} Rb8 {[%emt 0:05:30]} 12. Nc2 {[%emt 0:00:12]} Bg5 {[%emt 0:00:09]} 13. h4 {[%emt 0:00:07]} Bxh4 {[%emt 0:10:58]} 14. g3 {[%emt 0:00:08]} Be7 {[%emt 0:03:47]} 15. Nce3 {[%emt 0:06:35]} g6 {[%emt 0:13:40]} 16. Bd3 {[%emt 0:05:04]} b4 {[%emt 0:07:14]} 17. Kf1 {[%emt 0:06:07]} bxc3 {[%emt 0:07:01]} 18. bxc3 {[%emt 0:00:13]} Kf8 {[%emt 0:01:06]} 19. Qa4 {[%emt 0:07:14]} Bd7 {[%emt 0:03:39]} 20. Qa3 {[%emt 0:04:17]} Kg7 {[%emt 0:02:53]} 21. Rd1 {[%emt 0:05:24]} h5 {[%emt 0:12:14]} 22. Be2 {[%emt 0:07:16]} Bf8 {[%emt 0:04:07]} 23. Qxa6 {[%emt 0:03:59]} Ra8 {[%emt 0:07:18]} 24. Qc4 {[%emt 0:01:59]} Na5 {[%emt 0:02:52]} 25. Qc7 {[%emt 0:03:52]} Qxc7 {[%emt 0:02:15]} 26. Nxc7 {[%emt 0:00:06]} Rb8 {[%emt 0:00:41]} 27. Na6 {[%emt 0:03:04]} Rc8 {[%emt 0:03:39]} 28. Nd5 {[%emt 0:01:28]} Bc6 {[%emt 0:02:25]} 29. Nab4 {[%emt 0:01:32]} Bxd5 {[%emt 0:03:27]} 30. Rxd5 {[%emt 0:02:19]} Nc4 {[%emt 0:00:42]} 31. Kg2 {[%emt 0:01:25]} Be7 {[%emt 0:00:43]} 32. Rb5 {[%emt 0:02:50]} Bg5 {[%emt 0:01:27]} 33. Nd5 {[%emt 0:01:36]} h4 {[%emt 0:03:40]} 34. gxh4 {[%emt 0:01:21]} Rxh4 {[%emt 0:00:08]} 35. Rxh4 {[%emt 0:03:05]} Bxh4 {[%emt 0:00:02]} 36. Rb7 {[%emt 0:02:30]} Bg5 {[%emt 0:02:18]} 37. a4 {[%emt 0:02:11]} Bd8 {[%emt 0:01:08]} 38. Rd7 {[%emt 0:04:07]} Nd2 {[%emt 0:01:23]} 39. Ba6 {[%emt 0:04:26]} Ra8 {[%emt 0:00:41]} 40. Bb7 {[%emt 0:00:29]} Ra7 {[%emt 0:00:32]} 41. f3 {[%emt 0:27:25]} Ba5 {[%emt 0:14:12]} 42. Bc6 {[%emt 0:07:32]} Rxd7 {[%emt 0:00:18]} 43. Bxd7 {[%emt 0:00:02]} Nb3 {[%emt 0:08:30]} 44. Kf1 {[%emt 0:03:40]} Bd8 {[%emt 0:02:21]} 45. Ke2 {[%emt 0:00:56]} Nc5 {[%emt 0:00:55]} 46. Bb5 {[%emt 0:00:44]} f5 {[%emt 0:01:53]} 47. exf5 {[%emt 0:01:20]} gxf5 {[%emt 0:00:05]} 48. Nb4 {[%emt 0:00:21]} Bb6 {[%emt 0:01:09]} 49. Nc6 {[%emt 0:00:54]} Nb7 {[%emt 0:00:14]} 50. Ne7 {[%emt 0:01:42]} f4 {[%emt 0:00:35]} 51. Bc6 {[%emt 0:00:59]} Na5 {[%emt 0:02:20]} 52. Bd5 {[%emt 0:00:19]} Kf8 {[%emt 0:00:52]} 53. Ng6+ {[%emt 0:01:44]} Ke8 {[%emt 0:00:20]} 54. Kd3 {[%emt 0:00:39]} Bf2 {[%emt 0:00:36]} 55. Nh8 {[%emt 0:02:47]} Kd7 {[%emt 0:01:11]} 56. Nf7 {[%emt 0:01:21]} Nc6 {[%emt 0:01:09]} 57. Kc4 {[%emt 0:00:35]} Ne7 {[%emt 0:00:56]} 58. Ng5 {[%emt 0:01:12]} Bb6 {[%emt 0:01:10]} 59. Ne4 {[%emt 0:01:13]} Kc7 {[%emt 0:00:32]} 60. Ba8 {[%emt 0:00:39]} Kb8 {[%emt 0:00:32]} 61. Bd5 {[%emt 0:01:20]} Kc7 {[%emt 0:00:05]} 62. Nd2 {[%emt 0:00:39]} Ba5 {[%emt 0:00:24]} 63. Be4 {[%emt 0:00:21]} Kb6 {[%emt 0:01:02]} 64. Nb1 {[%emt 0:02:19]} Ka6 {[%emt 0:00:39]} 65. Na3 {[%emt 0:01:50]} Nc8 {[%emt 0:00:32]} 66. Nb5 {[%emt 0:01:10]} Bd8 {[%emt 0:00:20]} 67. Kd5 {[%emt 0:00:59]} Nb6+ {[%emt 0:00:04]} 68. Kxd6 {[%emt 0:00:12]} Nxa4 {[%emt 0:00:04]} 69. c4 {[%emt 0:00:32]} Nb2 {[%emt 0:00:13]} 70. Na3 {[%emt 0:00:56]} Ba5 {[%emt 0:00:08]} 71. Kxe5 {[%emt 0:01:10]} Kb6 {[%emt 0:02:10]} 72. Kd5 {[%emt 0:00:34]} Bb4 {[%emt 0:00:13]} 73. Nc2 {[%emt 0:00:13]} Bc5 {[%emt 0:00:08]} 74. Ne1 {[%emt 0:01:40]} Nd1 {[%emt 0:00:08]} 75. Ke5 {[%emt 0:00:21]} Nb2 {[%emt 0:01:06]} 76. Bd5 {[%emt 0:00:30]} Be3 {[%emt 0:00:12]} 77. Kd6 {[%emt 0:00:59]} Bc5+ {[%emt 0:00:38]} 78. Ke5 {[%emt 0:00:12]} Be3 {[%emt 0:00:01]} 79. Ng2 {[%emt 0:00:50]} Kc5 {[%emt 0:01:20]} 80. Ke4 {[%emt 0:00:08]} Bd2 {[%emt 0:00:42]} 81. Nxf4 {[%emt 0:00:05]} Nxc4 {[%emt 0:00:25]} 82. Ne6+ {[%emt 0:00:33]} Kb4 {[%emt 0:00:07]} 83. Kd3 {[%emt 0:00:13]} Nb6 {[%emt 0:00:14]} 84. Ba2 {[%emt 0:00:26]} Bc3 {[%emt 0:00:48]} 85. f4 {[%emt 0:00:13]} Nd7 {[%emt 0:00:25]} 86. Bd5 {[%emt 0:00:43]} Bf6 {[%emt 0:00:34]} 87. Ke3 {[%emt 0:00:31]} Ne5 {[%emt 0:00:56]} 88. Be4 {[%emt 0:00:42]} Nc4+ {[%emt 0:00:20]} 89. Kf2 {[%emt 0:00:19]} Nd6 {[%emt 0:00:17]} 90. Kf3 {[%emt 0:00:14]} Kc4 {[%emt 0:00:25]} 91. Bc6 {[%emt 0:00:23]} Nf5 {[%emt 0:00:12]} 92. Ke4 {[%emt 0:00:37]} Nd6+ {[%emt 0:00:06]} 93. Kf3 {[%emt 0:00:13]} Nf5 {[%emt 0:00:01]} 94. Kg4 {[%emt 0:00:05]} Nd4 {[%emt 0:00:32]} 95. Bd5+ {[%emt 0:00:57]} Kxd5 {[%emt 0:00:06]} 96. Nxd4 {[%emt 0:00:03]} Bxd4 {[%emt 0:00:04]} 1/2-1/2

[Event "45th FIDE Womens Olympiad 2024"]
[Site "Budapest"]
[Date "2024.09.14"]
[Round "4.26"]
[White "Chemaou lilya"]
[Black "Anahi Rishit Shah"]
[Result "1/2-1/2"]
[ECO "C55"]
[WhiteElo "1565"]
[BlackElo "1513"]
[PlyCount "74"]
[EventDate "2024.09.05"]
[EventType "team-tourn"]
[EventCountry "HUN"]
[WhiteTeam "Morocco"]
[BlackTeam "Tanzania"]
[WhiteTeamCountry "MAR"]
[BlackTeamCountry "TAN"]
[TimeControl "40/5400+30:1800+30"]

1. e4 e5 2. Nc3 Nc6 3. Bc4 Nf6 4. d3 h6 5. Nf3 Bb4 6. Bd2 Bxc3 7. Bxc3 d6 8. h3 O-O 9. O-O Be6 10. Bb3 a6 11. Qe2 Re8 12. d4 Nxd4 13. Nxd4 exd4 14. Bxd4 Bxb3 15. Bxf6 Qxf6 16. cxb3 c6 17. Qc2 Qg6 18. f3 d5 19. Rfe1 Re7 20. Rad1 Rae8 21. Kf2 dxe4 22. fxe4 Rxe4 23. Rxe4 Rxe4 24. Rd2 Qf5+ 25. Kg1 Re1+ 26. Kh2 Qxc2 27. Rxc2 Ra1 28. a4 f6 29. Rc5 Ra2 30. Rc2 Kf7 31. Kg3 Ke6 32. Kf4 h5 33. Re2+ Kf7 34. Rd2 Ke6 35. Re2+ Kf7 36. Rd2 Ke6 37. Re2+ Kf7 1/2-1/2

[Event "45th FIDE Womens Olympiad 2024"]
[Site "Budapest"]
[Date "2024.09.14"]
[Round "4.27"]
[White "Velikic, Adela"]
[Black "Nurman, Alua"]
[Result "0-1"]
[ECO "D36"]
[WhiteElo "2260"]
[BlackElo "2324"]
[Annotator "ChessBase"]
[PlyCount "156"]
[EventDate "2024.09.05"]
[EventType "team-tourn"]
[EventCountry "HUN"]
[SourceTitle "playchess.com"]
[Source "ChessBase"]
[SourceQuality "1"]
[WhiteTeam "Serbia"]
[BlackTeam "Kazakhstan"]
[WhiteTeamCountry "SRB"]
[BlackTeamCountry "KAZ"]
[TimeControl "40/5400+30:1800+30"]

1. d4 {[%emt 0:00:04]} d5 {[%emt 0:00:08]} 2. c4 {[%emt 0:00:08]} e6 {[%emt 0:00:05]} 3. Nc3 {[%emt 0:00:10]} Nf6 {[%emt 0:00:05]} 4. cxd5 {[%emt 0:00:08]} exd5 {[%emt 0:00:05]} 5. Bg5 {[%emt 0:00:12]} c6 {[%emt 0:00:10]} 6. e3 {[%emt 0:00:10]} h6 {[%emt 0:00:11]} 7. Bh4 {[%emt 0:00:14]} Be7 {[%emt 0:00:13]} 8. Bd3 {[%emt 0:00:25]} O-O {[%emt 0:00:08]} 9. Qc2 {[%emt 0:00:15]} Re8 {[%emt 0:00:20]} 10. Nge2 {[%emt 0:01:41]} a5 {[%emt 0:03:05]} 11. O-O {[%emt 0:01:15]} Na6 {[%emt 0:00:26]} 12. a3 {[%emt 0:01:10]} Nc7 {[%emt 0:00:47]} 13. Rac1 {[%emt 0:19:59]} Ne6 {[%emt 0:06:01]} 14. f3 {[%emt 0:10:30]} b5 {[%emt 0:23:08]} 15. Bf2 {[%emt 0:07:40]} Bd7 {[%emt 0:05:12]} 16. Rfd1 {[%emt 0:08:15]} Rc8 {[%emt 0:08:48]} 17. Bf5 {[%emt 0:11:03]} g6 {[%emt 0:09:10]} 18. Bd3 {[%emt 0:02:29]} Kg7 {[%emt 0:13:01]} 19. Qd2 {[%emt 0:14:16]} Qb6 {[%emt 0:02:51]} 20. e4 {[%emt 0:06:59]} dxe4 {[%emt 0:05:27]} 21. Bxe4 {[%emt 0:00:17]} b4 {[%emt 0:05:55]} 22. Na4 {[%emt 0:03:51]} Qa6 {[%emt 0:06:28]} 23. Bd3 {[%emt 0:01:38]} Qb7 {[%emt 0:00:05]} 24. Nc5 {[%emt 0:02:00]} Nxc5 {[%emt 0:00:07]} 25. dxc5 {[%emt 0:00:04]} Nd5 {[%emt 0:00:25]} 26. Bc4 {[%emt 0:02:21]} Be6 {[%emt 0:03:19]} 27. Nf4 {[%emt 0:02:00]} Nxf4 {[%emt 0:01:15]} 28. Qxf4 {[%emt 0:01:10]} Bg5 {[%emt 0:00:16]} 29. Qd4+ {[%emt 0:02:29]} Bf6 {[%emt 0:01:47]} 30. Qf4 {[%emt 0:00:28]} Bg5 {[%emt 0:02:21]} 31. Qd4+ {[%emt 0:00:07]} Kh7 {[%emt 0:02:14]} 32. Bxe6 {[%emt 0:02:15]} Rxe6 {[%emt 0:00:01]} 33. Rb1 {[%emt 0:00:33]} Rd8 {[%emt 0:00:53]} 34. Qc4 {[%emt 0:00:08]} Rde8 {[%emt 0:00:46]} 35. axb4 {[%emt 0:00:41]} axb4 {[%emt 0:00:07]} 36. Rd6 {[%emt 0:00:48]} Be3 {[%emt 0:00:58]} 37. Bxe3 {[%emt 0:00:26]} Rxe3 {[%emt 0:00:11]} 38. h3 {[%emt 0:00:33]} Re2 {[%emt 0:02:07]} 39. Rbd1 {[%emt 0:00:28]} R8e7 {[%emt 0:00:43]} 40. Qd4 {[%emt 0:00:26]} Qb8 {[%emt 0:00:38]} 41. Rd2 {[%emt 0:14:40]} Re1+ {[%emt 0:13:14]} 42. Kf2 {[%emt 0:00:32]} Qb5 {[%emt 0:03:15]} 43. Rf6 {[%emt 0:04:11]} Rc1 {[%emt 0:00:57]} 44. Rf4 {[%emt 0:04:45]} Rb7 {[%emt 0:00:36]} 45. Kg3 {[%emt 0:04:47]} Qxc5 {[%emt 0:02:01]} 46. Qxc5 {[%emt 0:01:45]} Rxc5 {[%emt 0:00:02]} 47. Rdd4 {[%emt 0:00:41]} Rg5+ {[%emt 0:01:48]} 48. Kf2 {[%emt 0:00:28]} c5 {[%emt 0:00:20]} 49. Rd2 {[%emt 0:00:33]} Re5 {[%emt 0:00:47]} 50. Rc4 {[%emt 0:01:00]} Ra7 {[%emt 0:04:46]} 51. f4 {[%emt 0:00:43]} Rf5 {[%emt 0:00:01]} 52. g4 {[%emt 0:00:17]} Rf6 {[%emt 0:00:05]} 53. Kf3 {[%emt 0:01:05]} Ra1 {[%emt 0:01:08]} 54. Rf2 {[%emt 0:00:48]} Rc6 {[%emt 0:01:49]} 55. Rfc2 {[%emt 0:00:14]} Rf1+ {[%emt 0:01:54]} 56. Kg3 {[%emt 0:01:26]} Rb1 {[%emt 0:00:05]} 57. Rxc5 {[%emt 0:00:45]} Rxc5 {[%emt 0:00:06]} 58. Rxc5 {[%emt 0:00:03]} Rxb2 {[%emt 0:00:02]} 59. g5 {[%emt 0:00:42]} h5 {[%emt 0:03:59]} 60. Rb5 {[%emt 0:00:25]} b3 {[%emt 0:00:04]} 61. Rb8 {[%emt 0:00:47]} Kg7 {[%emt 0:00:32]} 62. Kh4 {[%emt 0:00:33]} Rb1 {[%emt 0:00:52]} 63. Rb7 {[%emt 0:00:30]} Kf8 {[%emt 0:00:44]} 64. Rb8+ {[%emt 0:00:24]} Ke7 {[%emt 0:00:02]} 65. Rb6 {[%emt 0:00:32]} Kd7 {[%emt 0:01:28]} 66. f5 {[%emt 0:00:14]} gxf5 {[%emt 0:00:41]} 67. Rb7+ {[%emt 0:00:49]} Kc6 {[%emt 0:01:44]} 68. Rxf7 {[%emt 0:00:15]} b2 {[%emt 0:00:01]} 69. Rf6+ {[%emt 0:00:14]} Kd7 {[%emt 0:01:05]} 70. Rb6 {[%emt 0:00:59]} f4 {[%emt 0:00:09]} 71. Rb3 {[%emt 0:00:34]} f3 {[%emt 0:00:38]} 72. Rd3+ {[%emt 0:00:31]} Ke6 {[%emt 0:00:34]} 73. Re3+ {[%emt 0:00:13]} Kd5 {[%emt 0:00:14]} 74. Rxf3 {[%emt 0:00:14]} Rd1 {[%emt 0:00:14]} 75. Rb3 {[%emt 0:00:08]} b1=Q {[%emt 0:00:08]} 76. Rxb1 {[%emt 0:00:01]} Rxb1 {[%emt 0:00:01]} 77. Kxh5 {[%emt 0:00:10]} Ke6 {[%emt 0:00:09]} 78. h4 {[%emt 0:01:03]} Rb4 {[%emt 0:00:24]} 0-1

[Event "45th FIDE Womens Olympiad 2024"]
[Site "Budapest"]
[Date "2024.09.14"]
[Round "4.27"]
[White "Bertha Samson Mkude"]
[Black "El Harrak, Maryam"]
[Result "0-1"]
[ECO "B08"]
[WhiteElo "1459"]
[BlackElo "1639"]
[PlyCount "106"]
[EventDate "2024.09.05"]
[EventType "team-tourn"]
[EventCountry "HUN"]
[WhiteTeam "Tanzania"]
[BlackTeam "Morocco"]
[WhiteTeamCountry "TAN"]
[BlackTeamCountry "MAR"]
[TimeControl "40/5400+30:1800+30"]

1. e4 c6 2. Nc3 d5 3. exd5 cxd5 4. d4 Nf6 5. h3 g6 6. Bd3 Bg7 7. Nf3 O-O 8. O-O Nc6 9. a3 a5 10. Re1 Re8 11. Be3 b6 12. Bb5 Bd7 13. Bxc6 Bxc6 14. Ne5 Bb7 15. Qf3 Rc8 16. Bg5 h6 17. Bxf6 exf6 18. Ng4 Rxe1+ 19. Rxe1 Qd6 20. Ne3 Re8 21. Re2 Qd7 22. Ng4 Rxe2 23. Nxe2 f5 24. Ne3 Kf8 25. c3 h5 26. Nf4 Bh6 27. Kh2 Qd6 28. g3 Bxf4 29. Qxf4 Qxf4 30. gxf4 Ke7 31. Kg3 f6 32. c4 Kd6 33. cxd5 Bxd5 34. Nxd5 Kxd5 35. Kf3 Kxd4 36. Ke2 Ke4 37. f3+ Kxf4 38. Kf2 Ke5 39. Kg3 g5 40. b3 b5 41. a4 b4 42. Kg2 Kf4 43. Kf2 h4 44. Kg2 Ke3 45. f4 gxf4 46. Kf1 Kf3 47. Kg1 Ke2 48. Kg2 f3+ 49. Kg1 f2+ 50. Kg2 f1=Q+ 51. Kh2 Qxh3+ 52. Kxh3 f4 53. Kxh4 f3 {0-} 0-1

[Event "45th FIDE Womens Olympiad 2024"]
[Site "Budapest"]
[Date "2024.09.14"]
[Round "4.28"]
[White "Kairbekova, Amina"]
[Black "Mandura, Tijana"]
[Result "1/2-1/2"]
[ECO "C65"]
[WhiteElo "2243"]
[BlackElo "2207"]
[Annotator "ChessBase"]
[PlyCount "95"]
[EventDate "2024.09.05"]
[EventType "team-tourn"]
[EventCountry "HUN"]
[SourceTitle "playchess.com"]
[Source "ChessBase"]
[SourceQuality "1"]
[WhiteTeam "Kazakhstan"]
[BlackTeam "Serbia"]
[WhiteTeamCountry "KAZ"]
[BlackTeamCountry "SRB"]
[TimeControl "40/5400+30:1800+30"]

1. e4 {[%emt 0:00:01]} e5 {[%emt 0:00:07]} 2. Nf3 {[%emt 0:00:04]} Nc6 {[%emt 0:00:04]} 3. Bb5 {[%emt 0:00:08]} Nf6 {[%emt 0:00:08]} 4. d3 {[%emt 0:00:06]} Bc5 {[%emt 0:00:05]} 5. O-O {[%emt 0:00:05]} Nd4 {[%emt 0:00:36]} 6. Nxd4 {[%emt 0:00:09]} Bxd4 {[%emt 0:00:11]} 7. c3 {[%emt 0:00:06]} Bb6 {[%emt 0:00:20]} 8. Na3 {[%emt 0:00:08]} c6 {[%emt 0:01:23]} 9. Ba4 {[%emt 0:00:06]} h6 {[%emt 0:02:32]} 10. Bc2 {[%emt 0:07:42]} O-O {[%emt 0:03:14]} 11. Nc4 {[%emt 0:01:05]} Bc7 {[%emt 0:00:27]} 12. f4 {[%emt 0:00:43]} exf4 {[%emt 0:07:41]} 13. e5 {[%emt 0:08:55]} Nd5 {[%emt 0:00:13]} 14. Bxf4 {[%emt 0:01:23]} Nxf4 {[%emt 0:00:48]} 15. Rxf4 {[%emt 0:00:08]} d5 {[%emt 0:00:35]} 16. exd6 {[%emt 0:00:25]} Bxd6 {[%emt 0:00:07]} 17. Nxd6 {[%emt 0:00:20]} Qxd6 {[%emt 0:00:04]} 18. Qd2 {[%emt 0:01:59]} Be6 {[%emt 0:13:26]} 19. d4 {[%emt 0:01:19]} Rae8 {[%emt 0:05:12]} 20. b3 {[%emt 0:07:14]} Re7 {[%emt 0:01:11]} 21. Raf1 {[%emt 0:00:50]} Qd5 {[%emt 0:07:14]} 22. Qd3 {[%emt 0:06:23]} f5 {[%emt 0:03:37]} 23. h4 {[%emt 0:11:17]} g5 {[%emt 0:06:05]} 24. R4f2 {[%emt 0:01:45]} Bd7 {[%emt 0:08:00]} 25. Qd1 {[%emt 0:05:13]} Rf6 {[%emt 0:17:14]} 26. b4 {[%emt 0:04:17]} Qf7 {[%emt 0:01:44]} 27. Bb3 {[%emt 0:02:42]} Be6 {[%emt 0:00:11]} 28. c4 {[%emt 0:00:04]} Bxc4 {[%emt 0:03:31]} 29. Bxc4 {[%emt 0:03:28]} Qxc4 {[%emt 0:00:03]} 30. hxg5 {[%emt 0:00:08]} hxg5 {[%emt 0:00:36]} 31. Rxf5 {[%emt 0:04:36]} Rxf5 {[%emt 0:00:05]} 32. Rxf5 {[%emt 0:00:04]} Qxa2 {[%emt 0:03:56]} 33. Rxg5+ {[%emt 0:02:28]} Rg7 {[%emt 0:00:07]} 34. Rxg7+ {[%emt 0:00:17]} Kxg7 {[%emt 0:00:04]} 35. Qg4+ {[%emt 0:00:09]} Kf6 {[%emt 0:00:49]} 36. Qf4+ {[%emt 0:00:16]} Kg6 {[%emt 0:01:20]} 37. Qd6+ {[%emt 0:02:01]} Kg5 {[%emt 0:00:42]} 38. Qe7+ {[%emt 0:00:37]} Kg4 {[%emt 0:01:08]} 39. Qg7+ {[%emt 0:05:44]} Kf5 {[%emt 0:01:54]} 40. Kh2 {[%emt 0:00:53]} Qd2 {[%emt 0:03:11]} 41. Qe5+ {[%emt 0:47:59]} Kg4 {[%emt 0:33:43]} 42. Qe6+ {[%emt 0:02:52]} Kg5 {[%emt 0:00:16]} 43. Qg8+ {[%emt 0:00:00]} Kf5 {[%emt 0:00:00]} 44. Qh7+ {[%emt 0:00:00]} Kg5 {[%emt 0:00:00]} 45. Qe7+ {[%emt 0:00:00]} Kf5 {[%emt 0:00:00]} 46. Qe5+ {[%emt 0:00:00]} Kg4 {[%emt 0:00:00]} 47. Qe6+ {[%emt 0:00:00]} Kg5 {[%emt 0:00:00]} 48. Qe5+ {[%emt 0:02:24]} 1/2-1/2

[Event "45th FIDE Womens Olympiad 2024"]
[Site "Budapest"]
[Date "2024.09.14"]
[Round "4.29"]
[White "Mkrtchian, Lilit"]
[Black "Pham, Le Thao Nguyen"]
[Result "1/2-1/2"]
[ECO "D94"]
[WhiteElo "2366"]
[BlackElo "2380"]
[Annotator "ChessBase"]
[PlyCount "58"]
[EventDate "2024.09.05"]
[EventType "team-tourn"]
[EventCountry "HUN"]
[SourceTitle "playchess.com"]
[Source "ChessBase"]
[SourceQuality "1"]
[WhiteTeam "Armenia"]
[BlackTeam "Vietnam"]
[WhiteTeamCountry "ARM"]
[BlackTeamCountry "VIE"]
[TimeControl "40/5400+30:1800+30"]

1. c4 {[%emt 0:00:12]} c6 {[%emt 0:00:41]} 2. Nf3 {[%emt 0:01:01]} d5 {[%emt 0:00:18]} 3. e3 {[%emt 0:00:05]} Nf6 {[%emt 0:00:16]} 4. Nc3 {[%emt 0:00:20]} a6 {[%emt 0:02:17]} 5. d4 {[%emt 0:00:32]} g6 {[%emt 0:05:13]} 6. Bd3 {[%emt 0:04:37]} Bg7 {[%emt 0:01:13]} 7. h3 {[%emt 0:00:13]} O-O {[%emt 0:01:16]} 8. O-O {[%emt 0:00:04]} b5 {[%emt 0:05:31]} 9. b3 {[%emt 0:16:24]} Be6 {[%emt 0:05:52]} 10. cxd5 {[%emt 0:04:01]} cxd5 {[%emt 0:01:53]} 11. a4 {[%emt 0:02:03]} b4 {[%emt 0:01:32]} 12. Ne2 {[%emt 0:00:06]} Ne4 {[%emt 0:01:48]} 13. Bb2 {[%emt 0:07:52]} Nc6 {[%emt 0:07:07]} 14. Rc1 {[%emt 0:03:09]} Qd7 {[%emt 0:10:22]} 15. Nf4 {[%emt 0:29:46]} Na5 {[%emt 0:09:05]} 16. Ne5 {[%emt 0:10:19]} Qd6 {[%emt 0:02:59]} 17. Bxe4 {[%emt 0:03:44]} dxe4 {[%emt 0:02:32]} 18. Nxe6 {[%emt 0:00:10]} Qxe6 {[%emt 0:01:39]} 19. Nc4 {[%emt 0:00:05]} Nxc4 {[%emt 0:06:13]} 20. Rxc4 {[%emt 0:00:07]} Qd6 {[%emt 0:00:36]} 21. Qc2 {[%emt 0:00:52]} f5 {[%emt 0:00:58]} 22. Rc1 {[%emt 0:01:00]} a5 {[%emt 0:01:25]} 23. Rc5 {[%emt 0:04:28]} Bf6 {[%emt 0:02:27]} 24. Qc4+ {[%emt 0:01:23]} Kg7 {[%emt 0:00:44]} 25. Rc6 {[%emt 0:00:11]} Qd7 {[%emt 0:00:40]} 26. Rc7 {[%emt 0:00:08]} Qd6 {[%emt 0:00:35]} 27. Rc6 {[%emt 0:00:20]} Qd7 {[%emt 0:00:06]} 28. Rc7 {[%emt 0:00:13]} Qd6 {[%emt 0:00:10]} 29. Rc6 {[%emt 0:01:21]} Qd7 {[%emt 0:01:10]} 1/2-1/2